[Event "Slovakian-ch Youth 2022"]
[Site "Lubovna"]
[Date "2022.05.25"]
[Round "6.3"]
[White "Gyerpal, Adrian"]
[Black "Brnusak, Tomas"]
[Result "1-0"]
[ECO "A81"]
[WhiteElo "2171"]
[BlackElo "2212"]
[Annotator "TA"]
[PlyCount "107"]
[EventDate "2022.05.22"]
[EventCountry "SVK"]
[SourceTitle "playchess.com"]
[Source "ChessBase"]
[SourceQuality "1"]
[TimeControl "40/5400+30:1800+30"]

{[%evp 14,107,36,32,45,29,38,45,68,72,84,76,77,38,71,64,63,-43,-34,-16,-35,-43,-17,-37,-33,-72,-84,-85,-84,-79,-74,-71,-71,-94,-75,-102,-69,-98,-83,-114,-95,-150,-143,-130,-134,-171,-194,-227,-212,-208,-116,-163,-169,-192,-34,-32,0,-20,-13,-15,-13,-8,13,13,13,13,13,13,19,0,0,0,29966,29966,29961,29960,29961,29969,29974,29975,29975,0,29975,29977,29977,29978,29978,29979,29981,29981,29981,29982,29983,29984,29984,29984]} 1. Nf3 {[%emt 0:00:32]} Nf6 {[%emt 0:00:05]} 2. g3 {[%emt 0:00:33]} g6 {[%emt 0:00:06]} 3. b3 {[%emt 0:00:08]} Bg7 {[%emt 0:00:25]} 4. Bb2 {[%emt 0:00:10]} O-O {[%emt 0:00:30]} 5. Bg2 {[%emt 0:00:48]} d6 {[%emt 0:00:39]} 6. d4 {[%emt 0:00:29]} Ne4 {[%emt 0:01:27]} 7. O-O {[%emt 0:06:04]} f5 {[%emt 0:02:00]} 8. Nbd2 {[%emt 0:01:33]} c5 {[%emt 0:02:29] A81: Dutch Defence: 2 g3.} 9. c4 {[%emt 0:08:23]} Nc6 {[%emt 0:09:06][%cal Bb8c6,Bc6e5,Be5f3][%mdl 32]} 10. Rb1 {[%emt 0:09:35]} Qa5 {[%emt 0:11:12] White is slightly better.} 11. d5 {[%emt 0:05:48]} Nxd2 {[%emt 0:01:32]} 12. Nxd2 {[%emt 0:04:45] Hoping for Bxg7.} ({But not} 12. Qxd2 Qxd2 13. Nxd2 Nd4 $14) 12... Ne5 {[%emt 0:00:19] [#]} 13. a3 $146 {[%emt 0:04:26]} ({Predecessor:} 13. Qc1 Bd7 14. f4 Ng4 15. Bxg7 Kxg7 16. e4 e5 17. dxe6 Bxe6 18. Qb2+ Kg8 19. exf5 gxf5 20. Rfe1 Rae8 21. Rxe6 Rxe6 22. Bd5 Rfe8 23. Re1 Kf7 24. Nf3 {1-0 (24) Helmers,K (2415)-Cramling,P (2200) Bergsjo 1981}) 13... a6 {[%emt 0:07:03]} 14. b4 {[%emt 0:03:48]} Qc7 {[%emt 0:00:12]} 15. Rc1 {[%emt 0:04:42] [#]} (15. bxc5 $14 Qxc5 16. e3) 15... Nf3+ $1 $15 {[%emt 0:05:23]} 16. Nxf3 {[%emt 0:01:13]} Bxb2 {[%emt 0:00:07]} 17. bxc5 {[%emt 0:09:46]} Qxc5 {[%emt 0:14:43]} 18. Rc2 {[%emt 0:02:01]} Qxa3 {[%emt 0:00:43]} 19. Nd4 {[%emt 0:01:45]} Bd7 {[%emt 0:01:35]} 20. Qd2 {[%emt 0:03:50]} Bxd4 {[%emt 0:03:58]} 21. Qxd4 {[%emt 0:00:02]} Qc5 {[%emt 0:02:42]} 22. Qxc5 {[%emt 0:06:06]} dxc5 {[%emt 0:00:08]} 23. Rb1 {[%emt 0:00:58]} Ra7 {[%emt 0:04:50]} 24. e3 {[%emt 0:02:19]} Rf6 {[%emt 0:01:43]} 25. h3 {[%emt 0:06:40]} Kf8 {[%emt 0:03:22]} 26. f3 {[%emt 0:04:57]} e5 {[%emt 0:03:37]} 27. e4 {[%emt 0:01:21]} (27. Bf1 $142) 27... fxe4 $17 {[%emt 0:00:07]} 28. fxe4 {[%emt 0:00:06]} Ke7 {[%emt 0:01:05]} 29. Rc3 {[%emt 0:01:05]} Kd8 {[%emt 0:01:28]} 30. Bf1 {[%emt 0:01:52]} Kc7 {[%emt 0:01:04]} 31. Rcb3 {[%emt 0:00:20]} b6 {[%emt 0:00:08]} ({Black should try} 31... a5 $19 {And now ...a4 would win.} 32. Kg2 a4) 32. Ra3 {[%emt 0:01:20]} (32. Be2 $17 {might work better.}) 32... Ra8 {[%emt 0:01:43]} 33. Kg2 {[%emt 0:03:12]} Raf8 $2 {[%emt 0:05:03]} (33... Kb7 $19 {White must now prevent ...Raf8.} 34. Kg1 Raf8) 34. Rxa6 $15 {[%emt 0:03:37] [#]} Rxf1 $1 {[%emt 0:00:13]} 35. Rxf1 {[%emt 0:02:04] [#]} (35. Ra7+ Kc8) 35... Bxh3+ $1 {[%emt 0:00:05]} 36. Kxh3 {[%emt 0:00:04]} Rxf1 {[%emt 0:00:06][%mdl 4096] Endgame KR-KR} 37. Ra7+ {[%emt 0:00:29]} Kd8 {[%emt 0:00:39]} 38. Kg4 {[%emt 0:01:17]} Re1 {[%emt 0:05:42]} 39. Kg5 {[%emt 0:00:09]} Rxe4 {[%emt 0:00:04]} 40. Kf6 $1 {[%emt 0:00:16]} Rxc4 {[%emt 0:00:09]} 41. Ke6 {[%emt 0:09:08] d6 would kill now.} Rd4 {[%emt 0:05:13]} 42. Kd6 {[%emt 0:05:29][%cal Ra7a8]} Kc8 $2 {[%emt 0:03:23][%mdl 8192] [#]} (42... Ke8 $11) 43. Kc6 $1 {[%emt 0:00:32][%cal Ra7a8]} Kb8 {[%emt 0:00:55] [#]} 44. Rb7+ $1 {[%emt 0:02:12]} Kc8 {[%emt 0:02:15]} 45. Rxh7 {[%emt 0:01:56][%cal Rh7h8]} Kd8 {[%emt 0:01:13]} 46. d6 {[%emt 0:01:12][%cal Rh7h8]} Ke8 {[%emt 0:00:37]} 47. Rh8+ {[%emt 0:02:27]} Kf7 {[%emt 0:00:06] aiming for ...c4.} 48. d7 {[%emt 0:00:11] White mates.} Ke6 {[%emt 0:02:06]} 49. d8=Q {[%emt 0:00:31]} Rxd8 {[%emt 0:00:04]} 50. Rxd8 {[%emt 0:00:01]} e4 {[%emt 0:00:22]} 51. Re8+ {[%emt 0:02:16]} Kf5 {[%emt 0:00:05]} 52. Kd5 {[%emt 0:00:13]} Kg4 {[%emt 0:00:06]} 53. Kxe4 {[%emt 0:00:40]} g5 {[%emt 0:00:18]} 54. Re5 {[%emt 0:02:24] What a bad dream for Black.  Weighted Error Value: White=0.16 (very precise) /Black=0.32} 1-0

[Event "Slovakian-ch Youth 2022"]
[Site "Lubovna"]
[Date "2022.05.25"]
[Round "6.3"]
[White "Oruzinsky, Juraj"]
[Black "Gay, Lukas"]
[Result "1-0"]
[ECO "B43"]
[WhiteElo "1656"]
[BlackElo "1480"]
[Annotator "NA RC COMBH"]
[PlyCount "51"]
[EventDate "2022.05.22"]
[EventCountry "SVK"]
[SourceTitle "playchess.com"]
[Source "ChessBase"]
[SourceQuality "1"]
[TimeControl "40/5400+30:1800+30"]

1. e4 c5 {[%emt 0:00:46]} 2. Nf3 {[%emt 0:00:38]} e6 {[%emt 0:00:49]} 3. d4 {[%emt 0:00:14]} cxd4 {[%emt 0:00:12]} 4. Nxd4 {[%emt 0:00:07]} a6 {[%emt 0:00:38]} 5. Nc3 {[%emt 0:00:29]} Qc7 {[%emt 0:01:08]} 6. Bd3 {[%emt 0:00:59]} Nf6 {[%emt 0:00:23]} 7. O-O {[%emt 0:00:46]} d6 {[%emt 0:00:15]} 8. Bg5 {[%emt 0:01:15]} Nbd7 {[%emt 0:00:27]} 9. Nb3 {[%emt 0:04:20]} Be7 {[%emt 0:01:02]} 10. f4 {[%emt 0:04:45]} b6 {[%emt 0:01:35]} 11. Qe2 {[%emt 0:01:13]} Bb7 {[%emt 0:00:50]} 12. Rae1 {[%emt 0:01:04]} h6 {[%emt 0:00:27]} 13. Bh4 {[%emt 0:01:36]} Nxe4 {[%emt 0:03:06]} 14. Bxe7 {[%emt 0:02:43]} Nxc3 {[%emt 0:01:53]} 15. bxc3 {[%emt 0:00:10]} Kxe7 {[%emt 0:00:35]} 16. c4 {[%emt 0:02:17]} Nc5 {[%emt 0:02:06]} 17. Nd4 {[%emt 0:00:30]} Nxd3 {[%emt 0:01:39]} 18. Qxd3 {[%emt 0:00:32]} Kd7 {[%emt 0:00:28]} 19. f5 {[%emt 0:02:10]} e5 {[%emt 0:01:20]} 20. Rxe5 {[%emt 0:01:34]} Rhe8 {[%emt 0:01:14]} 21. Rfe1 {[%emt 0:00:50]} Rxe5 {[%emt 0:00:44]} 22. Rxe5 {[%emt 0:00:07]} d5 {[%emt 0:01:56]} 23. Qe3 {[%emt 0:03:18]} Kd6 {[%emt 0:01:51]} 24. f6 {[%emt 0:07:35]} g6 {[%emt 0:01:38]} 25. Re7 {[%emt 0:00:48]} Qb8 {[%emt 0:03:18]} 26. Qa3# 1-0

[Event "Slovakian-ch Youth 2022"]
[Site "Lubovna"]
[Date "2022.05.25"]
[Round "6.3"]
[White "Muller, Tomas"]
[Black "Matejka, Simon"]
[Result "0-1"]
[ECO "A10"]
[WhiteElo "1240"]
[BlackElo "1235"]
[Annotator "NA RC COMBH"]
[PlyCount "54"]
[EventDate "2022.05.22"]
[EventCountry "SVK"]
[SourceTitle "playchess.com"]
[Source "ChessBase"]
[SourceQuality "1"]
[TimeControl "40/5400+30:1800+30"]

1. c4 d5 {[%emt 0:01:42]} 2. cxd5 {[%emt 0:05:19]} Nf6 {[%emt 0:01:41]} 3. d6 {[%emt 0:02:37]} cxd6 {[%emt 0:02:04]} 4. Nc3 {[%emt 0:02:08]} e5 {[%emt 0:03:48]} 5. g3 {[%emt 0:02:46]} Nc6 {[%emt 0:02:04]} 6. Bg2 {[%emt 0:02:23]} Be6 {[%emt 0:02:55]} 7. e3 {[%emt 0:02:30]} Qd7 {[%emt 0:05:50]} 8. b3 {[%emt 0:01:40]} g6 {[%emt 0:01:24]} 9. Bb2 {[%emt 0:01:43]} Bg7 {[%emt 0:00:52]} 10. h3 {[%emt 0:03:02]} Rc8 {[%emt 0:03:44]} 11. Rc1 {[%emt 0:04:07]} O-O {[%emt 0:03:08]} 12. Nge2 {[%emt 0:01:01]} Rfe8 {[%emt 0:02:13]} 13. f4 {[%emt 0:01:55]} d5 {[%emt 0:02:47]} 14. fxe5 {[%emt 0:07:25]} Nxe5 {[%emt 0:00:53]} 15. d4 {[%emt 0:01:14]} Nc6 {[%emt 0:01:42]} 16. Nf4 {[%emt 0:07:41]} Bh6 {[%emt 0:11:20]} 17. Qf3 {[%emt 0:01:50]} Bxf4 {[%emt 0:03:50]} 18. Qxf4 {[%emt 0:01:47]} Nh5 {[%emt 0:02:23]} 19. Qf3 {[%emt 0:01:40]} Nxd4 {[%emt 0:01:52]} 20. Qf2 {[%emt 0:04:04]} Nc6 {[%emt 0:04:51]} 21. g4 {[%emt 0:02:06]} Ne5 {[%emt 0:02:57]} 22. Rd1 {[%emt 0:01:45]} Bxg4 {[%emt 0:02:29]} 23. Rxd5 {[%emt 0:02:06]} Qxd5 {[%emt 0:01:20]} 24. O-O {[%emt 0:10:47]} Qe6 {[%emt 0:03:17]} 25. hxg4 {[%emt 0:05:39]} Nxg4 {[%emt 0:01:28]} 26. Qf3 {[%emt 0:01:41]} Qxe3+ {[%emt 0:00:35]} 27. Kh1 {[%emt 0:02:07]} Ng3+ {[%emt 0:00:14]} 0-1

[Event "Slovakian-ch Youth 2022"]
[Site "Lubovna"]
[Date "2022.05.25"]
[Round "6.4"]
[White "Stevik, Patrik"]
[Black "Zdrazil, Patrik"]
[Result "0-1"]
[ECO "E60"]
[WhiteElo "2249"]
[BlackElo "1997"]
[Annotator "TA"]
[PlyCount "138"]
[EventDate "2022.05.22"]
[EventCountry "SVK"]
[SourceTitle "playchess.com"]
[Source "ChessBase"]
[SourceQuality "1"]
[TimeControl "40/5400+30:1800+30"]

{[%evp 13,138,22,43,43,41,40,43,37,45,45,49,40,45,56,57,60,59,61,94,81,96,106,135,124,125,89,87,89,100,86,91,95,118,120,162,0,0,-164,-161,-198,-179,-178,-76,-157,-158,-179,-179,-179,-179,-179,-179,-227,-220,-232,-179,-179,-179,-179,-179,-222,-202,-218,-154,-154,-143,-230,-230,-202,-187,-193,-187,-183,-183,-185,-181,-531,-531,-526,-506,-1156,-1151,-904,-531,-524,-524,-524,-524,-524,-524,-510,-495,-788,-772,-682,-649,-619,-597,-4137,-4137,-4137,-4137,-4137,-4137,-29976,-29977,-29977,-29978,-29978,-29978,-29979,-29980,-29982,-29983,-29987,-29987,-29986,-29986,-29986,-29986,-29987,-29988,-29988,-29987,-29989,-29990,-29991,-29992]} 1. Nf3 {[%emt 0:00:19]} Nf6 {[%emt 0:01:59]} 2. g3 {[%emt 0:00:16]} g6 {[%emt 0:00:04]} 3. b3 {[%emt 0:00:01]} Bg7 {[%emt 0:00:29]} 4. Bb2 {[%emt 0:00:07]} O-O {[%emt 0:00:32]} 5. Bg2 {[%emt 0:00:03]} c5 {[%emt 0:01:32]} 6. c4 {[%emt 0:00:24]} d6 {[%emt 0:01:01]} 7. d4 {[%emt 0:00:05]} Nc6 {[%emt 0:00:38] 7...Ne4 is the modern continuation.} 8. d5 {[%emt 0:00:37] E60: King's Indian: Unusual lines and Fianchetto Variation without Nc3.} Na5 {[%emt 0:01:10]} 9. O-O {[%emt 0:00:30]} a6 {[%emt 0:00:20]} 10. Nbd2 {[%emt 0:00:13] [#] White is slightly better.} Re8 $146 {[%emt 0:04:38]} ({Predecessor:} 10... b5 11. e4 Rb8 12. Bc3 Bg4 13. Qc2 Bxf3 14. Bxf3 bxc4 15. bxc4 Nd7 16. Be2 Bxc3 17. Qxc3 {1-0 (32) Dreev,A (2649)-Seliverstov,V (2462) Moscow 2018}) 11. Re1 {[%emt 0:00:20]} b5 {[%emt 0:01:46]} 12. Qc2 {[%emt 0:00:37]} Rb8 {[%emt 0:01:53]} 13. Bc3 {[%emt 0:02:44]} b4 {[%emt 0:04:36]} 14. Bb2 {[%emt 0:00:26]} e5 {[%emt 0:00:04]} 15. dxe6 {[%emt 0:00:16]} fxe6 {[%emt 0:00:48]} 16. Rad1 {[%emt 0:05:54]} Qc7 {[%emt 0:06:58]} 17. Ng5 {[%emt 0:03:06]} Rb6 {[%emt 0:14:37]} 18. Nde4 {[%emt 0:03:50]} Nxe4 {[%emt 0:04:16]} 19. Bxe4 {[%emt 0:00:11]} Bxb2 {[%emt 0:01:07]} 20. Qxb2 {[%emt 0:17:53]} Qg7 {[%emt 0:00:44]} 21. Qc2 {[%emt 0:01:56]} Nb7 {[%emt 0:04:57]} 22. h4 {[%emt 0:00:31][%cal Oh4h5]} Nd8 {[%emt 0:02:42][%cal Bb7d8,Bd8f7,Bf7h8][%mdl 32]} 23. h5 {[%emt 0:02:38]} Nf7 {[%emt 0:00:42]} 24. Nxh7 {[%emt 0:01:13]} gxh5 $11 {[%emt 0:01:46] Threatens to win with ...Bb7.} (24... Qxh7 $2 25. hxg6 Qg7 26. gxf7+ Kxf7 27. Kg2 $18) 25. Bg6 $2 {[%emt 0:02:39]} (25. Qc1 $11 d5 26. cxd5 exd5 27. Qxc5 dxe4 28. Qxb6 Qxh7 29. Rd5) 25... Re7 $19 {[%emt 0:01:57]} 26. Qb1 {[%emt 0:21:32]} Nh8 {[%emt 0:06:31]} 27. Bc2 {[%emt 0:01:50]} Qh6 {[%emt 0:00:07]} (27... e5 $1 $19 {And now ...h4 would win.} 28. Rd5 Bb7) 28. Qb2 {[%emt 0:02:13]} (28. f3 $142) 28... e5 $1 $17 {[%emt 0:01:59]} (28... Rxh7 29. Bxh7+ Kxh7 30. f3 $17) 29. Qc1 {[%emt 0:00:23]} Qxc1 {[%emt 0:00:53]} ({Not} 29... Rxh7 30. Bxh7+ Kxh7 31. Qxh6+ Kxh6 32. f3 $17) 30. Rxc1 {[%emt 0:00:15]} Rxh7 {[%emt 0:00:05]} 31. Bxh7+ {[%emt 0:00:11]} Kxh7 {[%emt 0:00:06]} 32. Kg2 {[%emt 0:01:32]} (32. f3 {might work better.}) 32... Kg6 $19 {[%emt 0:01:28]} 33. Rh1 {[%emt 0:00:20]} Rb8 {[%emt 0:02:22]} 34. Rh4 {[%emt 0:00:49]} Bb7+ {[%emt 0:00:50]} 35. f3 {[%emt 0:00:40]} Nf7 {[%emt 0:01:54][%cal Oe5e4]} 36. Rch1 {[%emt 0:00:08]} e4 $1 {[%emt 0:18:17]} (36... Rh8 37. g4 $15) 37. Rxh5 {[%emt 0:02:28]} Ng5 {[%emt 0:00:00][%cal Re4f3]} 38. Rh8 {[%emt 0:03:05]} exf3+ {[%emt 0:08:50]} 39. exf3 {[%emt 0:00:28]} (39. Kf2 $17 Rxh8 40. Rxh8) 39... Bxf3+ {[%emt 0:00:30]} 40. Kf2 {[%emt 0:00:30]} Rb7 {[%emt 0:00:30]} ({Worse is} 40... Bxh1 41. Rxb8 Kf5 42. Rb6 $17) 41. Rg8+ {[%emt 0:30:41]} Rg7 {[%emt 0:05:05]} 42. Rhh8 {[%emt 0:00:00]} Be4 $1 {[%emt 0:04:06]} 43. Ke3 {[%emt 0:00:00]} Bb1 $1 {[%emt 0:08:04]} 44. Rxg7+ $2 {[%emt 0:00:00]} (44. Kd2 {nothing else works.}) 44... Kxg7 {[%emt 0:00:05]} 45. Rh2 {[%emt 0:00:00]} Ne4 {[%emt 0:05:38] Prevents Rd2. aiming for ...a5.} 46. g4 {[%emt 0:00:00]} (46. Rh4 $142 Nc3 47. Kd2) 46... a5 {[%emt 0:01:39]} 47. g5 {[%emt 0:00:00]} Nxg5 {[%emt 0:10:10] Hoping for ...Ne4.} 48. Rb2 {[%emt 0:00:00]} Bf5 {[%emt 0:00:10]} 49. Rd2 {[%emt 0:00:22]} Nf7 {[%emt 0:01:07]} 50. Rg2+ {[%emt 0:02:05]} Kf6 {[%emt 0:00:28]} 51. Kd2 {[%emt 0:00:32]} Bd7 {[%emt 0:01:15]} 52. a3 {[%emt 0:01:39]} (52. Rh2 $142 Bf5 53. Rh5) 52... bxa3 {[%emt 0:01:41]} 53. Kc3 {[%emt 0:00:16]} Ne5 {[%emt 0:00:15]} 54. Ra2 {[%emt 0:00:27]} a4 {[%emt 0:00:19]} 55. b4 {[%emt 0:00:21]} cxb4+ {[%emt 0:00:24]} 56. Kxb4 {[%emt 0:00:08] [#]} Nxc4 $1 {[%emt 0:00:07]} 57. Rf2+ {[%emt 0:00:09]} (57. Ra1 d5) 57... Ke5 {[%emt 0:00:30][%cal Od7f5] White must now prevent ...Bf5!} 58. Kxc4 {[%emt 0:00:08][%mdl 4096] Endgame KR-KB} a2 $1 {[%emt 0:00:12] Black mates.} ({Stronger than} 58... Be6+ 59. Kc3 $19) 59. Re2+ {[%emt 0:01:04]} Kf4 {[%emt 0:00:18]} 60. Re1 {[%emt 0:00:05] [#]} Bf5 $1 {[%emt 0:01:10]} 61. Kc3 {[%emt 0:00:35] [#]} a3 $1 {[%emt 0:00:30]} 62. Ra1 {[%emt 0:04:47]} Bb1 {[%emt 0:00:04]} 63. Kd2 {[%emt 0:01:57]} Ke4 {[%emt 0:00:10]} 64. Ke2 {[%emt 0:00:29]} Kd4 {[%emt 0:00:08]} 65. Kd2 {[%emt 0:00:08]} Kc4 {[%emt 0:00:03]} 66. Kd1 {[%emt 0:00:42]} Kc3 {[%emt 0:00:24]} 67. Kc1 {[%emt 0:00:03]} Kb3 {[%emt 0:00:08]} 68. Kd2 {[%emt 0:01:44]} Kb2 {[%emt 0:00:08]} 69. Kd1 {[%emt 0:00:12]} Kxa1 {[%emt 0:00:16] Weighted Error Value: White=0.40/Black=0.15 (very precise)} 0-1

[Event "Slovakian-ch Youth 2022"]
[Site "Lubovna"]
[Date "2022.05.25"]
[Round "6.4"]
[White "Smetana, Peter"]
[Black "Polomsky, Tomas"]
[Result "1-0"]
[ECO "B24"]
[WhiteElo "1740"]
[BlackElo "1467"]
[Annotator "NA RC COMBH"]
[PlyCount "231"]
[EventDate "2022.05.22"]
[EventCountry "SVK"]
[SourceTitle "playchess.com"]
[Source "ChessBase"]
[SourceQuality "1"]
[TimeControl "40/5400+30:1800+30"]

1. e4 {[%emt 0:00:25]} c5 {[%emt 0:00:18]} 2. Nc3 {[%emt 0:01:20]} Nc6 {[%emt 0:01:20]} 3. Bb5 {[%emt 0:00:33]} Nd4 {[%emt 0:01:49]} 4. Bc4 {[%emt 0:01:53]} d6 {[%emt 0:04:02]} 5. Nge2 {[%emt 0:02:31]} Nf6 {[%emt 0:04:31]} 6. O-O {[%emt 0:02:45]} Be6 {[%emt 0:06:13]} 7. Bxe6 {[%emt 0:03:26]} Nxe6 {[%emt 0:00:23]} 8. d3 {[%emt 0:03:00]} g6 {[%emt 0:05:57]} 9. f4 {[%emt 0:03:08]} Bg7 {[%emt 0:08:17]} 10. h3 {[%emt 0:02:27]} Qd7 {[%emt 0:09:05]} 11. Kh1 {[%emt 0:02:12]} h5 {[%emt 0:05:31]} 12. Be3 {[%emt 0:06:16]} Qc6 {[%emt 0:09:18]} 13. f5 {[%emt 0:06:26]} gxf5 {[%emt 0:07:57]} 14. Rxf5 {[%emt 0:01:17]} Nc7 {[%emt 0:05:16]} 15. Bg5 {[%emt 0:03:23]} O-O-O {[%emt 0:03:00]} 16. Nf4 {[%emt 0:02:23]} Rde8 {[%emt 0:03:18]} 17. Bxf6 {[%emt 0:03:12]} Bxf6 {[%emt 0:01:07]} 18. Nxh5 {[%emt 0:01:08]} Bxc3 {[%emt 0:00:14]} 19. bxc3 {[%emt 0:00:40]} f6 {[%emt 0:01:20]} 20. c4 {[%emt 0:04:50]} Ne6 {[%emt 0:01:29]} 21. Rf2 {[%emt 0:03:59]} Qd7 {[%emt 0:02:13]} 22. Ng3 {[%emt 0:09:44]} Ng5 {[%emt 0:05:58]} 23. Nf5 {[%emt 0:00:44]} e6 {[%emt 0:01:24]} 24. Ng3 {[%emt 0:03:04]} Qh7 {[%emt 0:02:57]} 25. Qf1 {[%emt 0:00:39]} Reg8 {[%emt 0:01:46]} 26. Ne2 {[%emt 0:01:47]} Qh5 {[%emt 0:02:57]} 27. Ng1 {[%emt 0:02:09]} Nh7 {[%emt 0:00:33]} 28. Rf3 {[%emt 0:01:54]} Qe5 {[%emt 0:00:46]} 29. Rb1 {[%emt 0:01:10]} Rg6 {[%emt 0:01:04]} 30. Ne2 {[%emt 0:20:35]} Ng5 {[%emt 0:02:03]} 31. Rf2 {[%emt 0:00:30]} Rgh6 {[%emt 0:00:34]} 32. Ng1 {[%emt 0:00:24]} f5 {[%emt 0:01:56]} 33. exf5 {[%emt 0:02:11]} Qg3 {[%emt 0:00:34]} 34. Qe2 {[%emt 0:01:29]} exf5 {[%emt 0:00:36]} 35. Rb3 {[%emt 0:03:05]} Qh4 {[%emt 0:01:06]} 36. Nf3 {[%emt 0:01:14]} Qg3 {[%emt 0:00:26]} 37. Nxg5 {[%emt 0:00:10]} Qxg5 {[%emt 0:00:04]} 38. Rb1 {[%emt 0:00:31]} f4 {[%emt 0:00:54]} 39. Qf3 {[%emt 0:00:26]} R8h7 {[%emt 0:00:21]} 40. Re1 {[%emt 0:00:23]} Qf5 {[%emt 0:01:10]} 41. Qxf4 {[%emt 0:00:51]} Qd7 {[%emt 0:00:56]} 42. Qf5 {[%emt 0:01:35]} Qxf5 {[%emt 0:01:34]} 43. Rxf5 {[%emt 0:00:07]} Rg6 {[%emt 0:00:31]} 44. Kh2 {[%emt 0:01:00]} Rhg7 {[%emt 0:00:29]} 45. g4 {[%emt 0:00:17]} Kd7 {[%emt 0:00:36]} 46. Kg3 {[%emt 0:00:47]} a6 {[%emt 0:00:55]} 47. a4 {[%emt 0:01:06]} Kc6 {[%emt 0:00:02]} 48. a5 {[%emt 0:01:06]} b6 {[%emt 0:00:22]} 49. axb6 {[%emt 0:01:14]} Kxb6 {[%emt 0:00:02]} 50. Rb1+ {[%emt 0:00:11]} Kc6 {[%emt 0:00:34]} 51. Ra1 {[%emt 0:00:40]} Kb6 {[%emt 0:00:27]} 52. Rf4 {[%emt 0:03:32]} Re6 {[%emt 0:00:20]} 53. Rb1+ {[%emt 0:04:39]} Kc6 {[%emt 0:00:11]} 54. Rf8 {[%emt 0:00:59]} Re3+ {[%emt 0:01:03]} 55. Kf4 {[%emt 0:02:39]} Rxh3 {[%emt 0:02:21]} 56. Rc8+ {[%emt 0:00:13]} Rc7 {[%emt 0:00:13]} 57. Ra8 {[%emt 0:00:36]} Rf7+ {[%emt 0:01:20]} 58. Ke4 {[%emt 0:01:35]} Re7+ {[%emt 0:03:39]} 59. Kf5 {[%emt 0:00:05]} Rf3+ {[%emt 0:01:22]} 60. Kg6 {[%emt 0:00:44]} Re6+ {[%emt 0:01:54]} 61. Kh5 {[%emt 0:00:15]} Rh3+ {[%emt 0:00:48]} 62. Kg5 {[%emt 0:00:05]} Re5+ {[%emt 0:00:40]} 63. Kf4 {[%emt 0:00:05]} Re2 {[%emt 0:02:38]} 64. Rxa6+ {[%emt 0:00:17]} Kd7 {[%emt 0:00:02]} 65. Rbb6 {[%emt 0:00:57]} Rf2+ {[%emt 0:01:37]} 66. Kg5 {[%emt 0:00:12]} Rxc2 {[%emt 0:01:16]} 67. Rxd6+ {[%emt 0:00:12]} Ke7 {[%emt 0:00:44]} 68. Rd5 {[%emt 0:02:53]} Rg2 {[%emt 0:00:29]} 69. Rxc5 {[%emt 0:01:54]} Rxd3 {[%emt 0:00:23]} 70. Rd5 {[%emt 0:00:38]} Rc3 {[%emt 0:01:10]} 71. Rd4 {[%emt 0:00:23]} Rgc2 {[%emt 0:00:18]} 72. Rc6 {[%emt 0:00:15]} Rc1 {[%emt 0:00:41]} 73. Kg6 {[%emt 0:00:13]} Rg1 {[%emt 0:00:18]} 74. g5 {[%emt 0:00:05]} Rcg3 {[%emt 0:00:07]} 75. Rd5 {[%emt 0:00:06]} Rg4 {[%emt 0:00:12]} 76. c5 {[%emt 0:00:11]} R1g2 {[%emt 0:00:42]} 77. Rf5 {[%emt 0:00:33]} Kd7 {[%emt 0:00:14]} 78. Rd6+ {[%emt 0:00:38]} Kc7 {[%emt 0:00:24]} 79. Rf7+ {[%emt 0:00:09]} Kc8 {[%emt 0:00:08]} 80. Rd5 {[%emt 0:00:10]} R2g3 {[%emt 0:00:17]} 81. c6 {[%emt 0:00:21]} Rc3 {[%emt 0:00:10]} 82. c7 {[%emt 0:00:57]} Rxc7 {[%emt 0:00:09]} 83. Rxc7+ {[%emt 0:00:03]} Kxc7 {[%emt 0:00:01]} 84. Kf6 {[%emt 0:00:11]} Kc6 {[%emt 0:00:35]} 85. Rd2 {[%emt 0:00:14]} Rf4+ {[%emt 0:00:23]} 86. Kg7 {[%emt 0:00:09]} Rg4 {[%emt 0:00:22]} 87. g6 {[%emt 0:00:03]} Rg1 {[%emt 0:00:09]} 88. Kf7 {[%emt 0:00:15]} Rf1+ {[%emt 0:00:05]} 89. Kg8 {[%emt 0:00:04]} Rg1 {[%emt 0:00:07]} 90. g7 {[%emt 0:00:03]} Rf1 {[%emt 0:00:57]} 91. Rh2 {[%emt 0:00:10]} Kd6 {[%emt 0:00:03]} 92. Kh8 {[%emt 0:00:07]} Rg1 {[%emt 0:00:09]} 93. g8=Q {[%emt 0:00:06]} Rxg8+ {[%emt 0:00:08]} 94. Kxg8 {[%emt 0:00:07]} Ke5 {[%emt 0:00:04]} 95. Rh6 {[%emt 0:00:20]} Kd5 {[%emt 0:00:07]} 96. Kf7 {[%emt 0:00:06]} Ke5 {[%emt 0:01:55]} 97. Re6+ {[%emt 0:00:43]} Kd5 {[%emt 0:00:08]} 98. Kf6 {[%emt 0:00:05]} Kd4 {[%emt 0:00:03]} 99. Kf5 {[%emt 0:00:09]} Kd5 {[%emt 0:00:05]} 100. Re1 {[%emt 0:00:16]} Kd4 {[%emt 0:00:06]} 101. Re8 {[%emt 0:00:12]} Kd5 {[%emt 0:00:06]} 102. Rd8+ Kc6 103. Ke6 {[%emt 0:00:45]} Kc7 {[%emt 0:00:31]} 104. Rd6 {[%emt 0:00:25]} Kb7 {[%emt 0:00:07]} 105. Kd5 {[%emt 0:00:05]} Kc7 {[%emt 0:00:04]} 106. Rh6 {[%emt 0:00:04]} Kb7 {[%emt 0:00:07]} 107. Kc5 {[%emt 0:00:04]} Ka7 {[%emt 0:00:05]} 108. Kb5 {[%emt 0:00:03]} Kb7 {[%emt 0:00:06]} 109. Rh7+ {[%emt 0:00:04]} Kc8 {[%emt 0:00:05]} 110. Kc6 {[%emt 0:00:06]} Kd8 {[%emt 0:00:12]} 111. Ra7 {[%emt 0:00:04]} Ke8 {[%emt 0:00:04]} 112. Kd6 {[%emt 0:00:05]} Kf8 {[%emt 0:00:03]} 113. Ke6 {[%emt 0:00:03]} Kg8 {[%emt 0:00:03]} 114. Kf6 {[%emt 0:00:04]} Kh8 {[%emt 0:00:04]} 115. Kg6 {[%emt 0:00:05]} Kg8 {[%emt 0:00:04]} 116. Ra8# 1-0